bitfinex-derivatives/quotes_ETHF0:USTF0_20251220
["timestamp","ask_amount","ask_price","bid_price","bid_amount"]
[1766237950634,3.361,2976.7,2975.6,3.361]
[1766237950635,6.216,2976.7,2975.6,3.361]
[1766237951028,14.619,2976.7,2975.6,3.361]
[1766237951934,14.619,2976.7,2975.5,0.00504312]
[1766237952229,0.0030639,2976.8,2975.5,2.36200932]
[1766237952533,7.124,2976.6,2975.5,2.36200932]
[1766237955534,3.361,2976.5,2975.5,2.36200932]
[1766237955726,3.361,2976.5,2975.6,3.361]
[1766237955924,0.0030639,2976.8,2975.6,3.361]
[1766237956128,12.287,2976.7,2975.6,3.361]
[1766237956621,0.0030639,2976.8,2975.6,3.361]
[1766237956825,12.841,2976.7,2975.6,3.361]
[1766237957024,0.0030639,2976.8,2975.6,3.361]
[1766237957238,3.554,2976.7,2975.6,3.361]
[1766237957631,3.361,2976.6,2975.6,3.361]
[1766237960036,5.7179662,2976.6,2975.6,3.361]
[1766237960630,3.361,2976.6,2975.6,3.361]
[1766237962439,3.361,2976.6,2975.5,0.00504312]
[1766237968342,2.35621534,2976.5,2975.5,0.00504312]
[1766237971240,16.667,2976.4,2975.5,0.00504312]
[1766237972252,2.35621534,2976.5,2975.5,0.00504312]
[1766237972450,14.148,2976.4,2975.5,0.00504312]
[1766237975154,0.00504312,2976.2,2975.5,4.312e-05]
[1766237975355,3.361,2976.1,2975.5,4.312e-05]
[1766237977242,14.26,2976.0,2975.5,4.312e-05]
[1766237982155,2.35679351,2976.1,2975.5,4.312e-05]
[1766237982355,3.361,2976.0,2975.5,4.312e-05]
[1766237988567,2.55704312,2976.2,2975.5,4.312e-05]
[1766237988764,0.00504312,2976.2,2975.8,2.35679351]
[1766237988964,3.361,2976.1,2975.6,2.35679351]
[1766237989164,0.00504312,2976.2,2975.5,4.312e-05]
[1766237989165,0.00504312,2976.2,2975.8,2.35679351]
[1766237989467,3.361,2976.1,2975.6,2.35679351]
[1766237990670,0.168,2977.4,2976.0,2.35679351]
[1766237990861,3.361,2976.9,2976.4,2.35679351]
[1766237991061,3.361,2976.9,2976.0,2.35679351]
[1766237991661,3.361,2976.9,2975.9,3.361]
[1766237991862,2.35679351,2976.7,2975.9,3.361]
[1766237992060,3.361,2976.6,2975.9,3.361]
[1766237993964,2.563,2976.7,2976.0,2.35679351]
[1766237994170,2.35679351,2977.0,2976.0,2.35679351]
[1766237994376,0.168,2977.4,2976.0,2.35679351]
[1766237994570,3.361,2976.7,2976.0,2.35679351]
[1766237995170,0.0030639,2976.8,2976.0,2.35679351]
[1766237995365,3.361,2976.7,2976.0,2.35679351]
[1766237996576,0.0030639,2976.8,2976.2,2.35679351]
[1766237996972,3.3640639,2976.8,2976.4,2.35679351]
[1766237997271,0.0030639,2976.8,2976.4,2.35679351]
[1766237997572,3.3640639,2976.8,2976.4,2.35679351]
[1766237997968,3.3630639,2976.8,2976.4,2.35679351]
[1766237998269,7.107,2977.3,2976.4,2.35679351]
[1766237998470,2.35456472,2978.0,2976.9,2.35456472]
[1766237998663,2.35456472,2977.8,2977.2,0.00504312]
[1766237998869,26.379,2977.7,2977.2,0.00504312]
[1766237999269,26.38160654,2977.7,2977.2,0.00260963]
[1766237999474,26.38160654,2977.7,2976.7,2.35456472]
[1766237999773,17.977,2977.6,2976.7,2.35456472]
[1766238000176,0.00504312,2977.4,2976.9,0.00504312]
[1766238000374,0.00504312,2977.4,2976.9,0.00872969]
[1766238000974,3.36,2977.3,2976.9,0.00872969]
[1766238001979,3.36,2977.3,2976.5,5.71456472]
[1766238002370,0.00504312,2977.4,2976.5,5.71456472]
[1766238002575,3.36,2977.3,2976.5,5.71456472]
[1766238002978,3.36,2977.3,2976.6,0.00504312]
[1766238004385,0.00504312,2977.4,2976.6,0.00504312]
[1766238004682,3.36,2977.3,2976.6,0.00504312]
[1766238007381,3.36,2977.3,2976.6,4.312e-05]
[1766238007589,5.71456472,2977.3,2976.2,3.36]
[1766238007790,5.71456472,2977.3,2976.1,5.71456472]
[1766238008181,3.36,2977.3,2976.1,5.71456472]
[1766238008582,3.36,2977.3,2976.4,0.00504312]
[1766238010783,2.35456472,2977.2,2976.1,3.36288198]
[1766238011379,2.35456472,2977.2,2976.1,0.00288198]
[1766238011583,2.35456472,2976.8,2975.8,3.36]
[1766238011779,3.36,2976.7,2975.8,2.35456472]
[1766238011980,3.36,2976.7,2976.0,0.00504312]
[1766238012483,0.00504312,2977.4,2976.0,0.00504312]
[1766238012687,2.35456472,2977.0,2976.0,0.00763829]
[1766238012991,3.36,2976.9,2976.0,0.00763829]
[1766238013382,2.35456472,2976.8,2976.0,0.00763829]
[1766238019489,3.36,2976.9,2976.0,0.00763829]
[1766238019788,5.71456472,2976.9,2976.0,0.00763829]
[1766238024494,2.35456472,2976.7,2976.0,0.00763829]
[1766238024695,3.36,2976.6,2976.0,3.829e-05]
[1766238025595,3.36,2976.6,2976.0,0.00508141]
[1766238029001,6.025,2976.7,2976.0,0.00508141]
[1766238029195,3.36,2976.5,2976.0,0.00508141]
[1766238030395,0.88624101,2978.4,2976.0,0.00508141]
[1766238030699,2.35456472,2977.0,2976.0,2.35964613]
[1766238030900,3.36,2976.9,2976.0,2.35964613]
[1766238032893,2.35456472,2977.3,2976.2,2.35456472]
[1766238033094,2.35456472,2977.1,2976.0,2.35964613]
[1766238033398,2.35456472,2976.9,2976.0,2.35964613]
[1766238033594,3.36,2976.8,2976.0,2.35964613]
[1766238033898,11.363,2976.7,2976.0,2.35964613]
[1766238034698,11.363,2976.7,2976.0,0.00508141]
[1766238051402,14.157,2976.6,2976.0,0.00508141]
[1766238051711,3.36,2976.5,2976.0,0.00508141]
[1766238053209,14.157,2976.6,2976.0,0.00508141]
[1766238053210,3.36,2976.4,2976.0,0.00508141]
[1766238056207,2.552,2976.8,2976.0,0.00508141]
[1766238056413,3.36,2976.7,2976.0,0.00508141]
[1766238057308,2.552,2976.8,2976.0,0.00508141]
[1766238057613,3.36,2976.7,2976.0,0.00508141]
[1766238063317,3.36,2976.6,2976.0,0.00508141]
[1766238065313,3.36,2976.6,2975.7,3.36]
[1766238066414,3.36,2976.6,2975.9,0.00336208]
[1766238067621,0.16802,2977.1,2975.9,0.00336208]
[1766238067821,3.36,2977.0,2976.2,2.35561892]
[1766238068022,0.08,2976.9,2975.9,0.00336208]
[1766238070324,0.00504312,2977.4,2976.0,2.35561892]
[1766238070625,11.812,2977.3,2975.9,2.358981]
[1766238071222,11.812,2977.3,2975.9,0.00336208]
[1766238073017,11.812,2977.3,2976.0,2.35514236]
[1766238074728,14.16714236,2977.3,2976.0,2.35514236]
[1766238075416,11.812,2977.3,2976.0,2.35514236]
[1766238076421,11.812,2977.3,2975.9,0.00336208]
[1766238082232,11.812,2977.3,2976.2,2.35514236]
[1766238082431,11.812,2977.3,2975.9,2.35850444]
[1766238087629,0.00504312,2977.4,2975.9,2.35850444]
[1766238087832,25.427,2977.3,2976.0,3.36]
[1766238090539,25.427,2977.3,2976.0,5.71514236]
[1766238091332,25.427,2977.3,2976.0,3.36]
[1766238092130,18.05,2977.2,2976.1,2.35514236]
[1766238092332,21.41,2977.2,2976.1,2.35514236]
[1766238094941,2.552,2977.1,2976.1,2.35514236]
[1766238097343,2.552,2977.1,2976.3,2.35496347]
[1766238097641,3.36,2977.0,2976.3,2.35496347]
[1766238101050,14.611,2977.0,2976.3,2.35496347]
[1766238101351,3.36,2976.9,2976.3,2.35496347]
[1766238103256,3.36,2976.9,2976.0,3.36]
[1766238103454,3.36,2976.9,2976.2,2.35496347]
[1766238105355,3.36,2976.9,2976.0,3.36]
[1766238105557,3.36,2976.9,2976.1,2.35496347]
[1766238106457,2.36000659,2977.4,2976.1,2.35496347]
[1766238106758,24.185,2977.3,2976.1,2.35496347]
[1766238107947,24.185,2977.3,2976.0,3.36]
[1766238108150,24.185,2977.3,2976.1,2.35496347]
[1766238109259,26.156,2977.2,2976.3,2.35497662]
[1766238111060,0.00504312,2977.4,2976.5,2.35497662]
[1766238111261,26.372,2977.3,2976.0,5.71497662]
[1766238111459,26.372,2977.3,2976.4,2.35497662]
[1766238113062,0.00504312,2977.4,2976.4,2.35497662]
[1766238113264,0.00504312,2977.4,2976.0,5.71497662]
[1766238113265,3.36,2977.3,2976.0,5.71497662]
[1766238113563,3.36,2977.3,2976.4,2.35497662]
[1766238114366,3.36,2977.3,2976.0,3.36]
[1766238114564,3.36,2977.3,2976.3,2.35497662]
[1766238117267,0.00260654,2977.7,2977.1,2.35497662]
[1766238117562,3.36,2978.5,2977.2,3.36]
[1766238117758,3.36,2978.5,2977.5,2.35497662]
[1766238118164,3.36,2978.5,2977.3,3.36]
[1766238118461,0.00504312,2978.2,2977.6,0.00504312]
[1766238118662,3.36,2978.1,2977.6,0.00504312]
[1766238121169,11.76,2978.1,2977.6,0.00504312]
[1766238123868,2.35497662,2978.0,2977.6,0.00504312]
[1766238124371,2.35497662,2977.8,2976.7,2.35497662]
[1766238124572,3.359,2977.7,2976.7,2.35497662]
[1766238125270,3.359,2977.7,2976.9,0.00336208]
[1766238126769,2.35497662,2977.6,2976.4,2.35497662]
[1766238126966,6.38,2977.5,2976.4,2.35497662]
[1766238127164,6.38,2977.5,2976.0,2.35497662]
[1766238127165,2.35497662,2977.2,2976.0,3.359]
[1766238127472,3.359,2977.1,2976.2,2.35497662]
[1766238128357,3.359,2977.1,2976.0,5.71397662]
[1766238128558,2.35497662,2977.0,2976.0,3.359]
[1766238137871,2.35497662,2977.0,2976.0,5.71397662]
[1766238143183,2.35497662,2977.0,2976.0,3.359]
[1766238143481,2.35497662,2977.0,2976.0,5.71397662]
[1766238145683,5.71453567,2977.1,2976.0,3.359]
[1766238148385,5.71453567,2977.1,2976.0,5.71453567]
[1766238150489,18.398,2977.0,2976.0,5.71453567]
[1766238150690,3.36,2976.9,2976.0,5.71453567]
[1766238151990,3.36,2976.9,2976.1,2.35553567]
[1766238152793,2.35553567,2977.2,2976.1,2.35553567]
[1766238152990,13.431,2977.1,2976.1,2.35553567]
[1766238157098,0.16799,2977.6,2976.3,2.35553567]
[1766238157293,12.582,2977.5,2976.5,2.35553567]
[1766238157489,3.36,2977.4,2976.5,2.35553567]
[1766238159401,3.36,2977.4,2976.3,2.35468585]
[1766238165303,3.36,2977.4,2976.3,5.71468585]
[1766238181727,3.36,2977.4,2976.3,5.71453703]
[1766238194341,3.36,2977.3,2976.3,3.36]
[1766238204744,3.36,2977.3,2976.2,2.35453703]
[1766238204944,3.36,2977.3,2976.2,5.71453703]
[1766238218553,3.36,2977.3,2976.3,2.35471327]
[1766238221356,3.36,2977.3,2976.5,2.35475801]
[1766238229364,3.36,2977.3,2976.7,2.35475801]
[1766238241467,3.36,2977.3,2976.5,2.35475801]
[1766238241858,3.36,2977.3,2976.7,2.35475801]
[1766238242767,3.36,2977.3,2976.6,2.35475801]
[1766238243266,10.387,2978.4,2977.2,2.35475801]
[1766238243568,12.746,2978.1,2977.4,2.35475801]
[1766238243865,12.746,2978.1,2977.2,2.35475801]
[1766238245369,12.746,2978.1,2976.8,2.35475801]
[1766238245560,12.746,2978.1,2977.3,2.27695801]
[1766238250363,14.602,2978.0,2977.3,2.27695801]
[1766238250667,3.359,2977.9,2977.3,2.27695801]
[1766238252567,3.359,2977.8,2977.7,2.35475801]
[1766238252967,2.79955468,2977.8,2977.0,3.359]
[1766238253160,2.79955468,2977.8,2977.4,2.35475801]
[1766238254874,2.79955468,2977.8,2977.4,2.35331592]
[1766238260276,2.79955468,2977.8,2977.0,3.359]
[1766238260473,2.79955468,2977.8,2977.4,2.35331592]
[1766238260882,0.00504312,2978.2,2977.6,2.35331592]
[1766238261078,8.713,2978.1,2977.4,2.35331592]
[1766238261986,8.713,2978.1,2977.6,2.35331592]
[1766238262182,1.556,2978.0,2977.8,2.35331592]
[1766238262389,3.359,2978.1,2977.8,0.0041808]
[1766238264187,3.359,2978.1,2977.6,2.35331592]
[1766238265089,3.359,2978.1,2977.6,2.3575856]
[1766238270894,3.359,2978.1,2977.6,0.00426968]
[1766238271193,3.359,2978.1,2977.4,2.35331592]
[1766238272193,3.359,2978.1,2977.4,2.35640257]
[1766238273894,0.00504312,2978.2,2977.4,0.00308665]
[1766238274092,3.359,2978.1,2977.6,2.35331592]
[1766238275489,0.00504312,2978.2,2977.6,2.35331592]
[1766238275690,3.359,2978.1,2977.6,2.35331592]
[1766238277395,0.00504312,2978.2,2977.6,2.35331592]
[1766238277596,3.359,2978.1,2977.6,2.35331592]
[1766238278196,4.312e-05,2978.2,2977.6,0.84220305]
[1766238278498,3.359,2979.1,2978.1,2.35331592]
[1766238278793,2.35331592,2978.6,2977.4,0.00308665]
[1766238278993,3.359,2978.5,2977.5,3.359]
[1766238279189,3.359,2978.5,2977.6,2.35331592]
[1766238279394,3.359,2978.5,2977.8,0.00504312]
[1766238279395,0.00504312,2978.3,2977.8,0.00504312]
[1766238279597,0.00504312,2978.3,2977.8,2.35835904]
[1766238280300,0.00504312,2978.3,2977.8,0.00504312]
[1766238280895,5.71231592,2978.2,2977.4,0.00308665]
[1766238281492,3.359,2978.2,2977.4,0.00308665]
[1766238283602,0.00504312,2978.3,2977.4,0.00308665]
[1766238283796,3.359,2978.2,2977.4,0.00308665]
[1766238284997,0.00504312,2978.3,2977.4,0.00308665]
[1766238285204,3.359,2978.2,2977.4,0.00308665]
[1766238287700,0.00380949,2978.5,2977.6,2.35355895]
[1766238288100,2.35355895,2979.2,2977.7,2.35355895]
[1766238288299,2.35355895,2979.2,2977.5,7.21967066]
[1766238288300,2.35355895,2978.9,2977.8,3.359]
[1766238288492,3.359,2978.8,2977.8,3.359]
[1766238288897,0.00504312,2978.6,2978.0,0.00504312]
[1766238289102,0.0086075,2978.6,2978.0,0.00504312]
[1766238289697,0.0086075,2978.6,2977.5,3.86051933]
[1766238289698,3.359,2978.5,2977.5,0.87751933]
[1766238289894,3.359,2978.5,2977.5,3.359]
[1766238295906,11.756,2978.5,2977.5,3.359]
[1766238297906,6.4266075,2978.6,2977.5,3.359]
[1766238298208,0.0086075,2978.6,2977.5,3.359]
[1766238298410,3.3666075,2978.6,2977.5,3.359]
[1766238303715,3.3666075,2978.6,2977.6,3.358]
[1766238304015,3.3666075,2978.6,2977.7,2.35315146]
[1766238305509,3.3666075,2978.6,2978.0,2.35315146]
[1766238305510,0.0086075,2978.6,2978.0,2.35315146]
[1766238305805,3.358,2979.3,2978.5,2.35315146]
[1766238306016,3.358,2979.2,2978.5,5.71115146]
[1766238306821,0.00504312,2979.1,2978.6,0.00504312]
[1766238307815,0.00504312,2979.1,2977.8,0.869798]
[1766238308009,3.36304312,2979.1,2978.1,3.98]
[1766238308212,3.36304312,2979.1,2978.2,3.358]
[1766238311813,0.00504312,2979.1,2978.6,2.35315146]
[1766238313329,0.00332591,2979.2,2978.5,3.358]
[1766238313617,0.00332591,2979.2,2978.2,2.35315146]
[1766238313822,0.00332591,2979.2,2978.3,6.72]
[1766238314426,0.00504312,2979.0,2978.5,0.00504312]
[1766238315122,0.00332591,2979.2,2978.6,3.358]
[1766238316016,0.00836903,2979.2,2978.6,3.358]
[1766238318122,3.358,2979.4,2978.6,3.358]
[1766238318326,3.358,2979.7,2979.0,2.35315146]
[1766238318621,3.358,2980.0,2979.1,3.358]
[1766238319121,3.36078323,2980.0,2979.1,3.358]
[1766238320129,0.00503432,2979.8,2979.1,3.358]
[1766238320328,3.432e-05,2979.8,2979.1,3.358]
[1766238320626,3.358,2980.4,2979.3,2.35315146]
[1766238320830,3.358,2980.4,2979.4,3.357]
[1766238321032,3.358,2980.4,2979.4,3.117]
[1766238321222,3.358,2980.4,2979.7,2.35315146]
[1766238321426,3.358,2980.4,2979.8,3.357]
[1766238321628,2.02612243,2980.4,2979.8,3.36029455]
[1766238323525,0.00782243,2980.4,2979.8,3.36029455]
[1766238324440,5.71797389,2980.4,2978.9,2.35315146]
[1766238324735,3.36482243,2980.4,2979.0,3.357]
[1766238325536,3.36482243,2980.4,2979.0,3.36098725]
[1766238326433,0.00782243,2980.4,2979.5,2.35315146]
[1766238326637,3.357,2980.3,2979.5,2.35315146]
[1766238326839,3.357,2980.3,2979.6,3.357]
[1766238328535,3.357,2980.3,2979.6,5.70682333]
[1766238328736,0.00782243,2980.4,2979.6,3.357]
[1766238332333,0.00782243,2980.4,2979.4,6.92382333]
[1766238332539,0.00782243,2980.4,2979.5,3.357]
[1766238333440,0.00782243,2980.4,2979.7,2.34982333]
[1766238333636,0.00782243,2980.4,2979.8,3.357]
[1766238338141,3.357,2980.6,2979.8,3.357]
[1766238338539,0.1678,2981.1,2979.8,3.357]
[1766238338734,3.356,2981.0,2979.8,3.357]
[1766238339149,0.00335914,2980.7,2980.1,0.00503432]
[1766238339349,0.00335914,2980.7,2980.1,3.36103432]
[1766238343156,3.356,2981.4,2980.5,2.34982333]
[1766238343347,0.26236378,2982.8,2980.5,3.356]
[1766238343651,2.34772067,2982.1,2981.0,2.34772067]
[1766238343858,3.356,2982.0,2981.0,2.34772067]
[1766238344157,0.00320531,2982.0,2981.2,0.00503432]
[1766238344357,3.356,2981.9,2981.2,0.00853414]
[1766238345150,0.00320531,2982.0,2981.2,2.35625481]
[1766238345355,0.00320531,2982.0,2981.3,2.34772067]
[1766238346151,0.00320531,2982.0,2981.2,3.36453414]
[1766238346355,2.34772067,2982.3,2981.2,2.35625481]
[1766238346656,3.356,2982.2,2981.3,3.356]
[1766238347244,3.36034582,2982.2,2981.3,3.356]
[1766238347757,2.34772067,2981.7,2981.2,3.414e-05]
[1766238347956,3.356,2981.7,2981.2,3.414e-05]
[1766238348860,3.36103432,2981.7,2981.2,0.00506846]
[1766238349552,0.00503432,2981.7,2981.2,0.00506846]
[1766238349855,3.355,2981.6,2981.2,0.00506846]
[1766238350058,3.355,2981.6,2981.2,2.35278913]
[1766238350958,0.00503432,2981.7,2981.2,2.35278913]
[1766238351160,3.36003432,2981.7,2981.2,0.00506846]
[1766238351860,3.432e-05,2981.7,2981.2,0.00506846]
[1766238353464,0.78874569,2983.2,2981.3,3.082]
[1766238353756,2.34772067,2982.7,2981.5,2.34772067]
[1766238354068,2.34772067,2982.5,2981.4,3.355]
[1766238354362,3.355,2982.4,2981.4,3.355]
[1766238354552,2.34772067,2982.3,2981.2,0.00506846]
[1766238354757,2.34772067,2981.9,2981.2,0.00506846]
[1766238354963,3.355,2981.8,2981.2,0.00506846]
[1766238355161,3.355,2981.8,2980.7,2.34772067]
[1766238355162,3.355,2981.8,2981.0,3.355]
[1766238355957,2.34772067,2981.5,2980.7,3.355]
[1766238356160,2.34772067,2981.5,2980.8,0.00503432]
[1766238356161,3.36003432,2981.4,2980.8,0.00503432]
[1766238357667,2.34772067,2981.3,2980.8,0.00503432]
[1766238358055,2.34772067,2981.3,2980.8,3.432e-05]
[1766238358562,3.36003432,2981.4,2980.7,4.72e-06]
[1766238358869,3.36003432,2981.4,2980.0,2.71772067]
[1766238358870,2.34772067,2980.9,2980.1,3.355]
[1766238359068,3.355,2980.8,2980.1,3.355]
[1766238359564,3.355,2980.8,2980.2,0.00503432]
[1766238361167,3.355,2980.8,2980.1,3.35747267]
[1766238361367,3.355,2980.8,2980.1,0.00247267]
[1766238361368,2.34772067,2980.5,2980.1,0.00247267]
[1766238361570,3.355,2980.4,2979.7,3.355]
[1766238362172,3.355,2980.4,2979.8,0.00503432]
[1766238362568,3.355,2980.4,2979.8,0.00828261]
[1766238377478,3.356,2980.4,2979.8,0.00828261]
[1766238380478,2.34978248,2981.0,2979.8,2.35806509]
[1766238380681,4.657,2980.9,2979.8,2.35806509]
[1766238381081,0.00503432,2981.4,2980.2,2.34978248]
[1766238381374,3.356,2981.1,2980.4,2.34978248]
[1766238381575,3.356,2981.1,2980.6,2.34978248]
[1766238381781,3.36103432,2981.4,2980.6,5.70578248]
[1766238385481,3.36103432,2981.4,2980.8,2.34978248]
[1766238386486,0.00503432,2981.4,2980.8,2.34978248]
[1766238388473,3.355,2981.7,2981.2,2.34978248]
[1766238388679,3.355,2981.7,2981.0,2.34978248]
[1766238389581,0.00503432,2981.6,2981.1,0.00503432]
[1766238392785,3.432e-05,2981.6,2981.1,0.00503432]
[1766238397587,3.432e-05,2981.6,2981.1,2.3548168]
[1766238397789,3.355,2982.0,2981.5,2.34978248]
[1766238397988,0.00354572,2982.4,2981.5,2.34978248]
[1766238398293,3.355,2982.3,2981.5,2.34978248]
[1766238398792,0.00503432,2982.2,2981.5,2.34978248]
[1766238399801,0.00503432,2982.2,2981.5,5.70478248]
[1766238400093,3.36003432,2982.2,2981.5,5.70478248]
[1766238400289,3.36003432,2982.2,2981.7,2.34622474]
[1766238400992,0.00354572,2982.4,2981.7,2.34622474]
[1766238401191,0.00354572,2982.4,2981.9,2.34622474]
[1766238401390,0.00354572,2982.4,2981.9,2.34916531]
[1766238402494,0.00354572,2982.4,2981.9,0.00294057]
[1766238404488,0.00354572,2982.4,2981.8,1.5984]
[1766238404692,3.354,2982.3,2981.6,2.3979]
[1766238404900,3.354,2982.3,2981.3,3.354]
[1766238405099,3.354,2982.3,2981.4,3.354]
[1766238405496,3.354,2982.3,2981.4,3.35676552]
[1766238406303,3.354,2982.3,2981.4,5.70368149]
[1766238408492,0.00354572,2982.4,2981.4,5.70368149]
[1766238408698,3.354,2982.3,2981.4,5.70368149]
[1766238409397,0.00354572,2982.4,2981.4,5.70368149]
[1766238409596,3.35754572,2982.4,2981.4,5.70368149]
[1766238409897,3.35754572,2982.4,2981.5,2.34691597]
[1766238411703,3.35754572,2982.4,2981.4,3.35676552]
[1766238412306,3.35754572,2982.4,2981.4,5.70368149]
[1766238413716,0.00354572,2982.4,2981.4,5.70368149]
[1766238414016,3.354,2982.3,2981.4,5.70368149]
[1766238419217,2.51457597,2983.6,2982.0,2.34691597]
[1766238419513,5.837,2983.5,2982.5,0.00503432]
[1766238420316,13.286,2983.4,2982.5,0.00503432]
[1766238420620,2.34691597,2982.9,2981.8,3.354]
[1766238420815,3.354,2982.8,2981.4,5.89268149]
[1766238421016,3.354,2982.8,2981.5,3.354]
[1766238421615,0.00503432,2982.4,2981.9,0.00503432]
[1766238422214,0.00503432,2982.4,2981.4,0.00276552]
[1766238423218,0.00503432,2982.4,2981.3,3.354]
[1766238423421,0.00503432,2982.4,2981.0,3.354]
[1766238423627,2.34691597,2982.2,2981.0,3.354]
[1766238423917,3.354,2982.1,2981.0,3.354]
[1766238424220,3.354,2982.1,2981.3,0.00503432]
[1766238428322,3.354,2982.0,2981.3,0.00503432]
[1766238428627,3.354,2981.9,2981.3,0.00503432]
[1766238437129,2.34691597,2981.7,2981.0,0.0033186]
[1766238437331,2.34691597,2981.4,2980.5,3.354]
[1766238437529,3.354,2981.3,2980.5,3.354]
[1766238438130,3.354,2981.3,2980.6,0.00503432]
[1766238438324,3.35647001,2981.3,2980.6,0.00895077]
[1766238438733,3.35647001,2981.3,2980.4,3.354]
[1766238439730,3.35647001,2981.3,2980.6,0.00503432]
[1766238440538,2.34864532,2981.0,2980.1,3.354]
[1766238440830,3.354,2980.9,2980.1,3.354]
[1766238441435,0.00503432,2980.8,2980.2,0.0033562]
[1766238443736,0.00503432,2980.8,2980.0,3.354]
[1766238444625,0.00503432,2980.8,2980.0,3.35662864]
[1766238445440,3.355,2980.7,2980.0,0.00262864]
[1766238450940,0.00503432,2980.8,2980.0,0.00262864]
[1766238451234,3.355,2980.7,2980.0,0.00262864]
[1766238459245,0.00503432,2980.8,2980.0,0.00262864]
[1766238459442,3.355,2980.7,2980.0,0.00262864]
[1766238462545,3.355,2980.6,2980.0,0.00262864]
[1766238462738,0.00503432,2980.8,2980.0,0.00262864]
[1766238462944,3.355,2980.7,2980.0,0.00262864]
[1766238464844,3.355,2980.7,2980.1,3.356]
[1766238465746,0.00247001,2981.3,2980.1,9.356]
[1766238466053,201.38,2985.3,2981.2,2.34864532]
[1766238466054,3.355,2982.6,2981.2,2.34864532]
[1766238466238,3.355,2982.5,2981.3,3.355]
[1766238466438,3.355,2982.4,2981.3,3.355]
[1766238466851,0.00503432,2982.1,2981.6,0.00503432]
[1766238467148,0.00503432,2982.1,2981.6,3.432e-05]
[1766238467348,3.36003432,2982.1,2981.6,3.432e-05]
[1766238470447,2.34714013,2981.9,2981.6,3.432e-05]
[1766238470748,3.355,2981.8,2981.6,3.432e-05]
[1766238480058,0.00503432,2982.1,2981.6,3.432e-05]
[1766238480260,3.355,2982.0,2981.6,3.432e-05]
[1766238519304,0.00503432,2982.1,2981.6,3.432e-05]
[1766238519499,3.354,2982.0,2981.6,3.432e-05]
[1766238519695,0.00503432,2982.1,2981.6,3.432e-05]
[1766238519899,0.00503432,2982.1,2981.7,2.34707877]
[1766238520099,0.00503432,2982.1,2981.6,3.432e-05]
[1766238521505,2.35211309,2982.1,2981.6,3.432e-05]
[1766238522300,0.00503432,2982.1,2981.6,3.432e-05]
[1766238525205,2.35211309,2982.1,2981.6,3.432e-05]
[1766238527510,0.00503432,2982.1,2981.6,3.432e-05]
[1766238529110,8.39103432,2982.1,2981.6,3.432e-05]
[1766238530509,0.00503432,2982.1,2981.6,3.432e-05]
[1766238530708,3.354,2982.0,2981.6,3.432e-05]
[1766238568149,9.354,2982.0,2980.0,0.00262864]
[1766238568441,0.16777,2981.5,2980.0,0.00262864]
[1766238568641,1.295,2981.4,2980.1,2.34729167]
[1766238568857,2.34729167,2981.6,2980.1,5.70129167]
[1766238569840,4.039,2981.5,2980.1,5.70129167]
[1766238570547,13.022,2981.4,2980.1,5.70129167]
[1766238570740,16.376,2981.4,2980.1,5.70129167]
[1766238571136,2.34729167,2981.3,2980.1,3.354]
[1766238571342,2.34729167,2981.0,2980.1,3.354]
[1766238571542,3.355,2980.9,2980.1,3.354]
[1766238577652,3.355,2980.9,2980.0,0.00262864]
[1766238580157,3.355,2980.8,2980.0,0.00262864]
[1766238580955,3.355,2980.7,2980.0,0.00262864]
[1766238585560,2.34891888,2981.2,2980.0,0.00262864]
[1766238585749,6.415,2981.1,2980.0,0.00262864]
[1766238588460,8.01691888,2981.1,2980.0,0.00262864]
[1766238588662,3.355,2981.0,2980.0,0.00262864]
[1766238589459,5.70396562,2981.0,2980.0,0.00262864]
[1766238592661,2.34896562,2980.9,2980.0,0.00262864]
[1766238592961,5.70396562,2980.9,2980.0,0.00262864]
[1766238600869,3.355,2980.9,2980.0,0.00262864]
[1766238601172,3.355,2981.1,2980.2,2.34896562]
[1766238601365,3.355,2981.1,2980.1,3.355]
[1766238601961,2.34896562,2981.2,2980.1,3.355]
[1766238602167,3.355,2981.1,2980.1,3.355]
[1766238602970,2.34896562,2980.8,2980.1,3.355]
[1766238603166,5.70396562,2980.8,2980.1,3.355]
[1766238604376,3.355,2980.8,2980.1,3.355]
[1766238604574,5.70396562,2980.8,2980.1,3.355]
[1766238606475,12.299,2980.7,2979.0,3.355]
[1766238606676,0.00503432,2980.1,2979.1,2.34896562]
[1766238606867,3.36003432,2980.1,2979.1,2.34896562]
[1766238607375,3.36410575,2980.1,2979.1,2.35234005]
[1766238608174,3.36410575,2980.1,2979.1,0.00337443]
[1766238608374,2.34896562,2980.0,2979.1,0.00337443]
[1766238611583,3.356,2979.9,2979.1,0.00337443]
[1766238611887,0.00910575,2980.1,2979.4,2.34896562]
[1766238612069,0.00910575,2980.1,2979.4,5.70496562]
[1766238612876,0.00910575,2980.1,2979.6,2.34896562]
[1766238613076,3.356,2980.5,2979.7,3.356]
[1766238613277,3.356,2980.6,2979.7,3.356]
[1766238613977,0.00503432,2980.4,2979.9,0.00503432]
[1766238616372,0.00255024,2980.6,2980.0,3.356]
[1766238617376,0.00758456,2980.6,2980.0,3.356]
[1766238636887,3.355,2980.8,2980.0,3.356]
[1766238637994,0.00503432,2980.7,2980.0,5.70502065]
[1766238638997,0.00503432,2980.7,2980.0,3.356]
[1766238644192,2.35405497,2980.7,2980.0,3.049]
[1766238644892,0.00503432,2980.7,2980.0,3.049]
[1766238645093,3.36003432,2980.7,2980.0,3.049]
[1766238650113,0.00503432,2980.7,2980.0,3.049]
[1766238650614,3.355,2980.6,2980.0,3.049]
[1766238655217,0.00503432,2980.7,2980.0,3.049]
[1766238655518,3.355,2980.6,2980.0,3.049]
[1766238657616,0.00503432,2980.7,2980.0,3.049]
[1766238657819,3.355,2980.6,2980.0,3.049]
[1766238659214,0.00503432,2980.7,2980.0,3.89108775]
[1766238659515,0.00432898,2980.8,2980.0,3.049]